Cogmind - Beta 17 @@@ ROGUE MODE // 2026.06.23 @ 23:51:32 Player: thingimabob Result: Destroyed by Fusion Bomb Trap Performance ------------- Evolutions (0) 0 Regions Visited (2) 400 Robots Destroyed (12) 60 Value Destroyed (326) 326 Prototype IDs (1) 20 Alien Tech Used (0) 0 Bonus (5000) 5000 TOTAL SCORE: 5806 Bonus ------- Prayed to X0-1V1 5000 Cogmind --------- Core Integrity 0/250 Matter 275/300 Energy 100/100 System Corruption 4% Temperature Cool (0) Movement Core (100) Ox1 Location -10/Subcaves Parts ------- > --- POWER (1) -------- (None) > --- PROPULSION (2) --- (None) > --- UTILITY (2) ------ Small Storage Unit > --- WEAPON (2) ------- (None) > --- INVENTORY (8) ---- Light Treads Light Treads Wheel Wheel Heat Sink Core Shielding Grenade Launcher Peak State ------------ > --- POWER ------------ Ion Engine > --- PROPULSION ------- Wheel > --- UTILITY ---------- Small Storage Unit X0-1V1's Piety Tracker > --- WEAPON ----------- Light Assault Rifle Light Assault Rifle > --- INVENTORY -------- Light Treads Light Treads Wheel Wheel Heat Sink Core Shielding Grenade Launcher [Rating: 18] Favorites ----------- Power Ion Engine Engine Ion Engine Propulsion Wheel Treads Light Treads Wheel Wheel Utility Small Storage Unit Device X0-1V1's Piety Tracker Storage Small Storage Unit Weapon Light Assault Rifle Ballistic Gun Light Assault Rifle Build | -11 -10 -10 ------- Run | Yrd Mat Sub Slots Evolved . | . . . Power . | . . . Propulsion . | . . . Utility . | . . . Weapon . | . . . Parts Attached 11 | 8 3 . Power 1 | 1 . . Engine 1 | 1 . . Core . | . . . Reactor . | . . . Propulsion 5 | 4 1 . Treads 2 | 2 . . Leg . | . . . Wheel 3 | 2 1 . Hover . | . . . Flight . | . . . Utility 2 | 1 1 . Device 1 | . 1 . Storage 1 | 1 . . Processor . | . . . Hackware . | . . . Protection . | . . . Artifact . | . . . Weapon 3 | 2 1 . Energy Gun . | . . . Energy Cannon . | . . . Ballistic Gun 3 | 2 1 . Ballistic Cannon . | . . . Launcher . | . . . Special Weapon . | . . . Impact Weapon . | . . . Slashing Weapon . | . . . Piercing Weapon . | . . . Special Melee Weapon . | . . . Unidentified Prototypes 1 | . 1 . Parts Lost 6 | . 2 4 Power 1 | . . 1 Propulsion 2 | . 1 1 Utility 1 | . . 1 Weapon 2 | . 1 1 Highest Loss Streak 4 | . 1 4 To Critical Strikes . | . . . Average Backups 5 | 2 6 7 Power . | . . . Propulsion 3 | 1 3 4 Utility 1 | . 1 2 Weapon 1 | . 1 1 Tool/Special . | . . . Unused Backups 5 | . . 5 Power . | . . . Propulsion 2 | . . 2 Utility 2 | . . 2 Weapon 1 | . . 1 Tool/Special . | . . . Average Slot Usage (%) 80 | . 82 78 Engine 13 | . 14 12 Wheel 20 | . 24 12 Device 3 | . . 12 Storage 14 | . 14 14 Ballistic Gun 27 | . 28 27 Peak Build Rating 18 | 6 18 18 Average Rating 8 | 5 6 15 On Entrance 8 | . 6 18 Avg Prop Armor Cover (%) . | . . . Naked Turns . | . . . Heaviest Build 13 | 13 13 13 Greatest Support 40 | 40 26 10 Greatest Overweight (x) 1 | . 1 1 Average Overweight (x) . | . . 1 Largest Inventory Capacity 8 | 8 8 8 Average Capacity 7 | 7 8 8 Most Carried 8 | 5 8 7 Average Carried 6 | 2 6 7 Final Capacity 8 | 8 8 8 Final Carried 7 | 3 7 7 Class Distribution -------------------- 100% | Mutant Dominant Class ---------------- Mutant | -10/Materials Mutant | -10/Subcaves Resources | -11 -10 -10 ----------- Run | Yrd Mat Sub Matter Collected 489 | 286 203 . Remotely . | . . . Salvage Created 441 | 71 280 90 Parts 31 | . 22 9 Haulers Intercepted . | . . . Recyclers Shooed . | . . . Parts Field Recycled . | . . . Retrieved Matter . | . . . Parts Self-Destructed 4 | . . 4 Prevented . | . . . Parts Restored . | . . . Kills | -11 -10 -10 ------- Run | Yrd Mat Sub Combat Hostiles Destroyed 10 | . 8 2 Guns 9 | . 8 1 AOE 1 | . . 1 Classes Destroyed 5 | 1 3 1 Recycler 1 | 1 . . Watcher 1 | . 1 . Swarmer 2 | . 2 . Grunt 6 | . 6 . Subdweller 2 | . . 2 Best Kill Streak 2 | 1 2 1 Combat Bots Only 2 | . 2 1 Max Kills in Single Turn 1 | 1 1 1 Gunslinging . | . . . Exploded 1 | . . 1 Melee . | . . . Uniques/NPCs Destroyed . | . . . Combat | -11 -10 -10 -------- Run | Yrd Mat Sub Hostile Shots Fired 56 | . 33 23 Missed 9 | . 3 6 Hits 47 | . 30 17 Projectile 47 | . 30 17 Damage Taken 741 | . 308 433 Core 273 | . 65 208 Absorbed by Shields . | . . . Core Remaining (%) 100 | 100 . . Volleys Fired 62 | 9 39 14 Largest 2 | 2 2 2 Hottest 40 | 40 40 40 Shots Fired 120 | 18 78 24 Gun 120 | 18 78 24 Cannon . | . . . Launcher . | . . . Special . | . . . Kinetic 120 | 18 78 24 Thermal . | . . . Explosive . | . . . Electromagnetic . | . . . Robot Hit Streak 9 | 6 6 9 Robot Miss Streak 6 | 2 6 1 Penetration Max . | . . . Secondary Targets 1 | . 1 . Max Gunslinging Chain 1 | . 1 . Shots Hit Robots 76 | 13 42 21 Core Hits 23 | 2 18 3 Critical Kills 1 | . . 1 Critical Parts Destroyed 1 | . 1 . Critical Strikes 2 | . 1 1 Destroy 2 | . 1 1 Melee Attacks . | . . . Impact . | . . . Slashing . | . . . Piercing . | . . . Sneak Attacks . | . . . Combat Hostiles . | . . . Follow-up Attacks . | . . . Damage Inflicted 728 | 130 429 169 Guns 728 | 130 429 169 Cannons . | . . . Explosions . | . . . Melee . | . . . Ramming . | . . . Kinetic 728 | 130 429 169 Thermal . | . . . Explosive . | . . . Electromagnetic . | . . . Impact . | . . . Slashing . | . . . Piercing . | . . . Highest Corruption 4 | . 2 4 Average Corruption 3 | . 2 3 Corruption Purged . | . . . Corruption Blocked . | . . . Effects 8 | . 2 6 Message Errors 1 | . . 1 Matter Fused 2 | . . 2 Heat Flow Errors 1 | . 1 . Parts Rejected 1 | . . 1 Data Loss (minor) 2 | . 1 1 Weapon Failures 1 | . . 1 Overload Shots . | . . . Overflow Damage . | . . . Projectiles . | . . . Explosions . | . . . Melee . | . . . Knockbacks . | . . . Impact . | . . . Kinetic . | . . . Secondary . | . . . Self-Inflicted Damage . | . . . Shots . | . . . Rammed . | . . . Targets Rammed . | . . . Kicked . | . . . Crushed . | . . . Highest Temperature 218 | . 218 . Average Temperature 97 | . 97 . Received Heat Transfer 204 | . 138 66 Siege Activations . | . . . Martial Activations . | . . . Shielding Activations . | . . . Robots Disrupted . | . . . Combat Hostiles . | . . . Robots Corrupted . | . . . Combat Hostiles . | . . . Parts Fried . | . . . Impact Corruptions . | . . . Robots Melted . | . . . Combat Hostiles . | . . . Parts Melted . | . . . Heat Transferred . | . . . Parts Sabotaged . | . . . Parts Stolen . | . . . Parts Stripped . | . . . Power Chain Reactions . | . . . Alert | -11 -10 -10 ------- Run | Yrd Mat Sub Maximum Alert Level . | . . . Low Security (%) 100 | 100 100 . Level 1 . | . . . Level 2 . | . . . Level 3 . | . . . Level 4 . | . . . Level 5 . | . . . High Security . | . . . Max Security . | . . . Peak Influence 67 | 5 67 . Initial 3 | . 3 . Average 17 | . 22 . Influence Increases 207 | 5 202 . Destroy 0b10 Robot/C 160 | . 160 . Destroy 0b10 Robot/NC 10 | 5 5 . Destroy Leader 22 | . 22 . Lose Combat Pursuer 15 | . 15 . Influence Decreases 207 | . 156 51 Entered New Map 27 | . 2 25 Time Decay 170 | . 144 26 Lost Part 10 | . 10 . Squads Dispatched 1 | . 1 . Investigation . | . . . Extermination . | . . . Reinforcement 1 | . 1 . Assault . | . . . Garrison . | . . . Intercept . | . . . Searches Triggered . | . . . Construction Impeded . | . . . Haulers Reinforced . | . . . Active Scanning Responses . | . . . Cargo Convoy Interrupts . | . . . Stealth | -11 -10 -10 --------- Run | Yrd Mat Sub Distress Signals 2 | . 2 . Communications Jammed . | . . . Distress Signals . | . . . Times Spotted 16 | . 14 2 Peak Tracking Total 4 | . 4 2 Tactical Retreats 1 | . 1 . Traps | -11 -10 -10 ------- Run | Yrd Mat Sub Traps Triggered 1 | . 1 . Indirectly . | . . . Trap Hack Attempts . | . . . Triggered . | . . . Disarmed . | . . . Reprogrammed . | . . . Reused . | . . . Traps Extracted . | . . . Installed . | . . . Triggered . | . . . Machines | -11 -10 -10 ---------- Run | Yrd Mat Sub Machines Disabled . | . . . Max in Single Turn . | . . . Machines Repaired . | . . . Machines Dismantled . | . . . Machines Sabotaged . | . . . Overloaded Fab Kills . | . . . Hacking | -11 -10 -10 --------- Run | Yrd Mat Sub Machines Accessed 1 | . 1 . Terminals 1 | . 1 . Fabricators . | . . . Repair Stations . | . . . Recycling Units . | . . . Scanalyzers . | . . . Garrison Access . | . . . Total Hacks 1 | . 1 . Successful . | . . . Failed 1 | . 1 . Catastrophic . | . . . Database Lockouts . | . . . Manual 2 | . 2 . Terminals 1 | . 1 . Fabricators . | . . . Repair Stations . | . . . Recycling Units . | . . . Scanalyzers . | . . . Garrison Access . | . . . Terminal Hacks . | . . . Fabricator Hacks . | . . . Repair Station Hacks . | . . . Recycling Unit Hacks . | . . . Scanalyzer . | . . . Garrison Access Hacks . | . . . Unauthorized Hacks . | . . . Terminals . | . . . Fabricators . | . . . Repair Stations . | . . . Recycling Units . | . . . Scanalyzers . | . . . Garrison Access . | . . . Data Cores Recovered . | . . . Used . | . . . Hacking Detections 1 | . 1 . Full Trace Events . | . . . Feedback Events . | . . . Feedback Blocked . | . . . Robot Schematics Acquired . | . . . Robots Built . | . . . Authchips . | . . . Time . | . . . Total Robot Build Rating . | . . . Part Schematics Acquired . | . . . Parts Built . | . . . Authchips . | . . . Time . | . . . Total Part Build Rating . | . . . Part Studies Acquired . | . . . Parts Repaired . | . . . Time . | . . . Parts Recycled . | . . . Recycled Matter . | . . . Retrieved Matter . | . . . Retrieved Components . | . . . Parts Scanalyzed . | . . . Part Schematics Acquired . | . . . Parts Damaged . | . . . Bothacking | -11 -10 -10 ------------ Run | Yrd Mat Sub Used RIF Installer . | . . . Robots Hacked . | . . . Non-combat . | . . . Combat . | . . . Robot Hacks Applied . | . . . Relay Couplers Released . | . . . Fabnet Peak Effective % . | . . . Robots Rewired . | . . . Allies Hacked . | . . . Hacks Repelled . | . . . Allies | -11 -10 -10 -------- Run | Yrd Mat Sub Total Allies . | . . . Largest Group . | . . . Highest-Rated Group . | . . . Highest-Rated Ally . | . . . Total Orders . | . . . Ally Attacks . | . . . Total Damage . | . . . Kills . | . . . Allies Corrupted . | . . . Allies Melted . | . . . X0-1V1 Amusement Gains 106 | . 15 91 Good Acts 1 | . . 1 Bad Acts 1 | . . 1 Intel | -11 -10 -10 ------- Run | Yrd Mat Sub Active Infowar (turns) . | . . . Robot Analysis Total . | . . . Derelict Logs Recovered . | . . . Drone Launches . | . . . Drone Recoveries . | . . . Exploration | -11 -10 -10 ------------- Run | Yrd Mat Sub Turns Passed 793 | 134 454 205 Spaces Moved 606 | 105 329 172 Core 29 | 25 . 4 Treads 8 | 8 . . Legs . | . . . Wheels 569 | 72 329 168 Hover . | . . . Flight . | . . . Fastest Speed 50 | 50 80 95 Average Speed 87 | 85 84 95 Slowest Speed 160 | 160 95 100 Overloaded Moves . | . . . Propulsion Burnouts . | . . . Robots Hopped . | . . . Potential Cave-ins . | . . . Cave-ins Triggered . | . . . Exploration Rate (%) 22 | 4 53 9 Regions Visited 2 Branch Regions 1 Pre-discovered Areas . | . . . Known Exits Taken . | . . . Unknown Exits Taken 2 | 1 1 . Scrap Searched . | . . . Spaces Dug . | . . . Terrain Destroyed . | . . . Melee . | . . . Projectile . | . . . AOE . | . . . Terrain Rammed . | . . . Walls Destroyed . | . . . Machines Disabled . | . . . Actions | -11 -10 -10 --------- Run | Yrd Mat Sub Total 759 | 131 434 194 Wait 64 | . 56 8 Move 604 | 104 328 172 Hop . | . . . Pick Up 16 | 9 7 . Fast Attach . | . . . Attach 8 | 6 2 . Detach . | . . . Swap 4 | 3 1 . Drop 1 | . 1 . Fire 62 | 9 39 14 Melee . | . . . Ram . | . . . Kick . | . . . Crush . | . . . Escape Stasis . | . . . Rewire . | . . . Trap . | . . . Miscellaneous . | . . . Route ------- -11/Scrapyard -10/Materials (discovered 3 exits: [*Mat] / [*Min] / [*Sub]) -10/Subcaves History --------- Turn | Location | Event 4 | -11/Scrapyard | Discovered new exit (range 14) 135 | -11/Scrapyard | Entered Materials 310 | -10/Materials | Build established: Mutant 322 | -10/Materials | Discovered new exit (range 7) 526 | -10/Materials | Discovered new exit (range 13) 556 | -10/Materials | Discovered new exit (range 13) 568 | -10/Materials | Prayed at D.C.S.S. Altar Unit 589 | -10/Materials | Entered Subcaves 590 | -10/Subcaves | Approached by a straggling Scientist 778 | -10/Subcaves | Core integrity fell below 50% 794 | -10/Subcaves | Core integrity fell below 20% 794 | -10/Subcaves | Destroyed by Fusion Bomb Trap Last Messages --------------- here" System corrupted: Component data lost. Ion Engine destroyed. X0-1V1's Piety Tracker destroyed. X0-1V1 is mildly amused. System corrupted: Matter fused (-5). Wheel destroyed. QT-WYG(R) suffers critical hit (Destroy). QT-WYG(R) destroyed. System corrupted: Lgt. Assault Rifle jammed. System corrupted: Lgt. Assault Rifle rejected. Subatomizers dissect the Lgt. Assault Rifle. PA-2R3(R) affixes Scrap Shield Fragment to Scrap Shield. QM-93T(c): "I think it's somewhere north of here" X0-1V1: "Fire in the hole!" PA-2R3(R) destroyed. Lgt. Assault Rifle destroyed. X0-1V1 chuckles heartily! Map ----- +----------------------------------------------------+ | ## ##????????????????????????????????????????????? | | # ##???????????????????????????????????????????? | | # #???????????????????????????????????????????? | | ## #???????????????????????????????????????????? | | ## ##??????????????????????????????????????????? | | # ####???????????????????????????????????????? | | # # #???????????????????????????????????????? | | # #???????????????????????????????????????? | | ## #???????????????????????????????????????? | | ## #???????????????????????????????????????? | | #???????????????????????????????????????? | | ### ##?????????????????? ????????????????????? | | ??# ##?????????????????? ##???????????????????? | | ??## ##??????????????????? #???????????????????? | | ???# #???????????????????? #???????????????????? | | ???# ##??????????????????? #???????????????????? | | ???# ##?????????????????? #???????????????????? | | ???# #?????????????##### ##??????????????????? | | ???### ##????????????## ???????????????????? | | ????# #####?#####??# ????????????????????? | | ????# ### #?# #### #????????????????????? | | ????# ### ## #????????????????????? | | ????### ## #?# #????????????????????? | | ??????#### # ##??# #????????????????????? | | #???????# ##???# ???????????????????? | | #?????## ###????# @ [* ##?????????????????? | | ????## ##??????# ?????????????????? | | #???# #####????# # % ! ?????????????????? | | #?## ##?# ###??# [#= ?????????????????? | | # ## ###### ##?## # #????????????????? | | ?# ##??# ##?# #? #???????????????? | | ?# #???# ### #??? ??????????????? | | ?### #?### ##???? #?????????????? | | ?### #?# #????? #?????????????? | | ?# ##?# ## ###?????? ????????????? | | ?## #??# ####### ##????????? ???????????? | | ?## #??## ### ### ?????????? ??????????? | | ## ##?## ## ???????????????????????? | | # ### ###??????????????????????? | | ## # ##????????????????????????? | | ?# ### ## #?????????????????????????? | | ?# ##?# ## ???????????????????????? | | ?# ##??# ##? ## #??????????????????????? | | ?## #??? ???### ??????????????????????? | | ??## ##??? # ##?????# ???????????????????????? | | ???# ######?##???????# ???????????????????????? | | ??## # #????????????????????????????????????? | | ?## #????????????????????????????????????? | | ?# #????????????????????????????????????? | | ?# ### #????????????????????????????????????? | +----------------------------------------------------+ Best States ------------- Heat Dissipation 25 Energy Generation 10 Energy Capacity 250 Matter Stores 300 Matter Capacity 300 Sight Range 16 Terrain Scan Density 10 Evasion (%) 50 Recoil Reduction 2 Item Schematics ----------------- None Robot Schematics ------------------ None Fabricated ------------ Nothing Repaired ---------- Nothing Studied --------- None Alien Tech Used ----------------- None Achievements -------------- Chaos Is Inevitable Challenges ------------ None Game ------ Seed VampiricNovaParser Manual? 0 Play Time 00:09:27 Cumulative 48.6 hours Start 2026.06.23 @ 23:34:43 End 2026.06.23 @ 23:51:32 Sessions 1 Manual Loads 0 Difficulty Rogue Special Mode None Game No. 65 Rogue 65 Adventurer 0 Explorer 0 Win Type - Total 1 Types 1/0/0/0/0/0/0/0/0/0 Lore% 34 Gallery% 31 Achievement% 28 Wizard Run 0 Options --------- Layout 1 ASCII 0 Keyboard 0 Movement Mouse Keybinds 0 Fullscreen 2 Font 24/Smallcaps Map View 50x35 Zoom Use 0% Tactical HUD 0 Map Filters NONE Filters NONE Steam 1 RUN: f7c9602d-e7be-4c5d-8e05-2984956b61f7